Cogmind - Beta 17 @@@ ROGUE MODE // 2026.08.23 @ 18:14:55 Player: KURIIRI Result: Self-destructed Performance ------------- Evolutions (5) 2500 Regions Visited (20) 4000 Robots Destroyed (372) 1860 Value Destroyed (17033) 17033 Prototype IDs (23) 460 Alien Tech Used (0) 0 Bonus (24506) 24506 TOTAL SCORE: 50359 Bonus ------- Triggered High Security 500 High Alert Combat Kills 2575 Follower Combat Kills 3736 Prayed to X0-1V1 5000 Major X0-1V1 Interference 9600 Entered Garrisons 1200 Used RIF Installer 3000 Friendly Fire -1105 Cogmind --------- Core Integrity 925/1000 Matter 300/300 Energy 1250/1250 System Corruption 4% Temperature Cool (0) Movement Rolling (135) Ox3 Location -5/Garrison Parts ------- > --- POWER (1) -------- Enhanced Fission Core > --- PROPULSION (4) --- Armored Huge Wheel (fused) Armored Huge Wheel > --- UTILITY (8) ------ Huge Storage Unit Experimental Targeting Computer Heavy Reactive Plating Advanced Hacking Suite Advanced Hacking Suite Relay Coupler [Grunt] (58) > --- WEAPON (4) ------- Heavy Linear Accelerator Micro-nuke Launcher Improved Remote Datajack > --- INVENTORY (26) --- F-cell Engine Hybrid Antimatter Reactor Armored Huge Wheel Advanced Heat Sink High-capacity Matter Pod (196) Advanced Hardlight Generator Force Field Improved Remote Force Field Authchip [R/NC] Authchip [R/Combat] Relay Coupler [NC] (29) Relay Coupler [Swarmer] (22) Relay Coupler [Grunt] (27) Relay Coupler [Hunter] (14) Relay Coupler [Proto] (9) Relay Coupler [Proto] (9) Relay Coupler [Proto] (9) Relay Coupler [Proto] (9) Heavy Linear Accelerator Compact Tesla Bomb Launcher Remote Datajack Multitool Peak State ------------ > --- POWER ------------ Heavy Antimatter Reactor > --- PROPULSION ------- Armored Huge Wheel Armored Huge Wheel > --- UTILITY ---------- Huge Storage Unit Experimental Targeting Computer Heavy Reactive Plating Improved Remote Force Field Advanced Hacking Suite Relay Coupler [Grunt] Relay Coupler [Hunter] > --- WEAPON ----------- Cooled Plasma Cannon Heavy Linear Accelerator Micro-nuke Launcher > --- INVENTORY -------- F-cell Engine Enhanced Fission Core Hybrid Antimatter Reactor Armored Huge Wheel Advanced Heat Sink High-capacity Matter Pod Advanced Hardlight Generator Force Field Advanced Hacking Suite Authchip [R/NC] Authchip [R/Combat] Relay Coupler [NC] Relay Coupler [Swarmer] Relay Coupler [Grunt] Relay Coupler [Hunter] Relay Coupler [Proto] Relay Coupler [Proto] Relay Coupler [Proto] Relay Coupler [Proto] Heavy Linear Accelerator Compact Tesla Bomb Launcher Remote Datajack Improved Remote Datajack Multitool [Rating: 105] Favorites ----------- Power Enhanced Fission Core Engine Heavy Ion Engine Power Core Enhanced Fission Core Reactor Antimatter Reactor Propulsion Armored Huge Wheel Treads Light Treads Leg Aluminum Leg Wheel Armored Huge Wheel Utility Advanced Targeting Computer Device Improved Hardlight Generator Storage Huge Storage Unit Processor Advanced Targeting Computer Hackware Relay Coupler [Grunt] Protection Hardened Heavy Armor Plating Weapon Ion Cannon Energy Gun Improved EM Shotgun Energy Cannon Ion Cannon Ballistic Gun Subdweller Machine Gun Ballistic Cannon Heavy Mass Driver Launcher Compact Tesla Bomb Launcher Special Weapon Remote Datajack Impact Weapon Power Maul Slashing Weapon Makeshift Axe Piercing Weapon Spear Special Melee Weapon Improved Datajack Build | -11 -10 -10 -8 -8 -8 -8 -8 -8 -7 -7 -7 -7 -6 -6 -6 -6 -5 -5 -5 -5 ------- Run | Yrd Mat Sub Mat Gar Mat Gar Mat Gar Fac Was Fac Gar Fac Was Fac Gar Fac Was Fac Gar Slots Evolved 10 | . . . 4 . . . . . 2 . . . 2 . . . 2 . . . Power . | . . . . . . . . . . . . . . . . . . . . . Propulsion 2 | . . . . . . . . . 1 . . . . . . . 1 . . . Utility 7 | . . . 3 . . . . . 1 . . . 2 . . . 1 . . . Weapon 1 | . . . 1 . . . . . . . . . . . . . . . . . Parts Attached 169 | 4 4 4 12 6 7 7 8 3 25 . 16 7 10 3 24 7 7 2 7 6 Power 14 | . . 1 1 . 1 . . . 3 . . . . 1 3 . 1 1 1 1 Engine 7 | . . 1 1 . 1 . . . 1 . . . . . 2 . 1 . . . Core 4 | . . . . . . . . . 2 . . . . . 1 . . . . 1 Reactor 3 | . . . . . . . . . . . . . . 1 . . . 1 1 . Propulsion 18 | 2 . . 1 1 1 1 1 . 3 . 3 . 2 . 2 . 1 . . . Treads 5 | 2 . . . 1 . . . . 1 . . . 1 . . . . . . . Leg . | . . . . . . . . . . . . . . . . . . . . . Wheel 13 | . . . 1 . 1 1 1 . 2 . 3 . 1 . 2 . 1 . . . Hover . | . . . . . . . . . . . . . . . . . . . . . Flight . | . . . . . . . . . . . . . . . . . . . . . Utility 89 | 1 2 . 4 3 3 5 5 1 5 . 12 6 8 1 14 5 4 1 5 4 Device 23 | 1 1 . . . 1 . 2 . 2 . 2 2 . 1 5 1 1 1 1 2 Storage 5 | . 1 . . . . 1 . . . . 1 . . . 2 . . . . . Processor 9 | . . . 2 . . 1 . . 1 . . . 1 . 3 . . . 1 . Hackware 37 | . . . . 1 2 1 2 1 2 . 6 4 5 . 2 4 3 . 2 2 Protection 15 | . . . 2 2 . 2 1 . . . 3 . 2 . 2 . . . 1 . Artifact . | . . . . . . . . . . . . . . . . . . . . . Weapon 48 | 1 2 3 6 2 2 1 2 2 14 . 1 1 . 1 5 2 1 . 1 1 Energy Gun 6 | . 2 . 3 . . . . . 1 . . . . . . . . . . . Energy Cannon 15 | . . 1 3 . 1 1 . . 9 . . . . . . . . . . . Ballistic Gun 2 | 1 . 1 . . . . . . . . . . . . . . . . . . Ballistic Cannon 7 | . . . . . . . . . 2 . . 1 . . 2 . 1 . 1 . Launcher 6 | . . . . 1 . . 1 1 1 . . . . . . 1 . . . 1 Special Weapon 7 | . . . . 1 . . 1 . 1 . 1 . . . 2 1 . . . . Impact Weapon 1 | . . . . . . . . 1 . . . . . . . . . . . . Slashing Weapon 2 | . . 1 . . . . . . . . . . . 1 . . . . . . Piercing Weapon . | . . . . . . . . . . . . . . . . . . . . . Special Melee Weapon 2 | . . . . . 1 . . . . . . . . . 1 . . . . . Unidentified Prototypes 16 | . 2 . . . 1 . . . 7 . 1 . 1 1 . . 1 . 1 1 Corrupted Parts 1 | . . . . . . . . . . . . . . . 1 . . . . . System Corruption 8 | . . . . . . . . . . . . . . . 8 . . . . . Parts Lost 25 | . . 1 2 . . 3 . . 3 . 2 1 1 . 9 1 1 . . 1 Power 4 | . . 1 . . . . . . 1 . . . . . 2 . . . . . Propulsion 5 | . . . 1 . . . . . 1 . 1 1 . . 1 . . . . . Utility 10 | . . . . . . 1 . . . . 1 . 1 . 4 1 1 . . 1 Weapon 6 | . . . 1 . . 2 . . 1 . . . . . 2 . . . . . Highest Loss Streak 3 | . . 1 1 . . 2 . . 2 . 1 1 1 . 3 1 1 . . 1 To Critical Strikes . | . . . . . . . . . . . . . . . . . . . . . Average Backups 17 | 5 9 14 14 15 13 13 17 16 18 19 19 20 20 18 19 20 20 18 19 22 Power . | 1 1 . . . . . . . . 1 1 1 1 1 1 1 1 1 2 2 Propulsion 1 | 3 3 4 3 1 . . 2 2 1 1 1 2 2 2 1 1 . . . 1 Utility 9 | . . 2 2 5 7 8 10 8 10 11 10 10 10 9 9 13 15 13 11 14 Weapon 4 | 1 4 6 5 5 4 2 2 4 4 4 4 5 5 5 4 3 1 2 2 2 Tool/Special . | . . . . . . . . . . . . . . . . . . . . . Unused Backups 56 | . 1 3 2 7 1 . 2 2 . . 2 6 2 . 5 3 1 . . 19 Power . | . . . . . . . . . . . . . . . . . . . . . Propulsion 4 | . . . 1 2 . . . . . . . . . . . . . . . 1 Utility 37 | . 1 . . 2 1 . 2 2 . . 2 4 . . 4 3 . . . 16 Weapon 12 | . . 3 1 2 . . . . . . . 2 2 . 1 . . . . 1 Tool/Special 3 | . . . . 1 . . . . . . . . . . . . 1 . . 1 Average Slot Usage (%) 80 | . 100 99 93 96 90 81 80 81 80 76 80 74 73 78 73 70 75 70 77 74 Engine 4 | . 14 13 9 9 9 8 9 9 4 . . . . . 1 . 1 2 . . Core 2 | . . . . . . . . . 1 7 7 7 6 1 . 5 3 . . 2 Reactor 1 | . . . . . . . . . . . . . . 4 3 . . 2 5 2 Treads 3 | . 28 28 9 8 6 . . . 3 . . . . . . . . . . . Wheel 9 | . . . 8 9 11 10 9 9 8 7 12 9 10 13 10 6 11 11 11 11 Device 6 | . 14 14 11 9 8 5 2 8 3 7 9 9 6 6 4 2 3 . 3 3 Storage 7 | . 14 14 9 9 9 8 9 9 7 7 7 7 6 6 6 6 5 5 5 5 Processor 6 | . . . 6 10 . 8 9 9 7 7 7 7 6 6 9 6 5 5 3 5 Hackware 9 | . . . . 5 9 3 5 . 10 7 5 4 16 13 10 18 18 23 24 17 Protection 5 | . . . 15 9 9 8 9 9 6 7 6 7 6 6 5 3 4 . 2 5 Energy Gun 2 | . 27 22 8 . . . . . 1 . . . . . . . . . . . Energy Cannon 11 | . . 3 13 26 26 26 26 25 17 22 22 13 . 5 3 5 5 5 5 3 Ballistic Cannon 2 | . . . . . . . . . 1 . . 2 6 6 6 4 5 5 5 5 Special Weapon 2 | . . . . . . . . . . . . 2 5 5 3 6 4 5 5 3 Peak Build Rating 105 | 7 24 26 43 44 44 44 45 45 66 66 71 76 74 75 80 70 90 86 99 105 Average Rating 58 | 6 12 24 37 41 36 40 41 43 49 65 66 64 68 71 71 63 84 76 90 100 On Entrance 51 | 6 7 24 25 41 44 34 43 45 44 66 66 70 61 67 73 55 64 75 77 99 Avg Prop Armor Cover (%) 5 | . . . 8 7 5 . . . 4 . . . 4 . . . . . . . Naked Turns . | . . . . . . . . . . . . . . . . . . . . . Heaviest Build 194 | 14 32 38 52 64 67 83 94 95 100 100 158 148 144 150 155 134 150 124 179 194 Greatest Support 56 | 40 40 40 16 16 26 28 28 28 38 28 44 38 44 44 44 28 56 56 56 56 Greatest Overweight (x) 5 | . . . 3 3 4 3 3 3 3 3 5 5 5 3 5 4 2 2 3 3 Average Overweight (x) 2 | . . . 2 2 2 2 2 3 2 3 3 3 3 3 3 3 2 2 2 2 Largest Inventory Capacity 26 | 8 15 16 16 16 16 21 21 21 21 21 26 26 26 26 26 26 26 26 26 26 Average Capacity 22 | 8 11 15 16 16 16 16 21 21 21 21 24 26 26 26 26 26 26 26 26 26 Most Carried 26 | 6 12 16 16 16 16 20 21 21 21 21 26 26 26 25 26 26 25 20 24 26 Average Carried 20 | 5 9 14 14 15 15 15 20 19 20 21 23 24 25 23 24 24 21 19 21 24 Final Capacity 26 | 8 15 16 16 16 16 21 21 21 21 21 26 26 26 26 26 26 26 26 26 26 Final Carried 26 | 4 12 16 16 16 15 20 21 21 21 21 25 25 25 25 19 26 19 20 21 24 Class Distribution -------------------- 20% | Botlord-Tank 19% | Bothacker-Tank 17% | Bothacker-Gunner 11% | Mutant 7% | Hauler-Tank 6% | Hauler-Gunner 4% | Tank 4% | Botlord-Skirmisher Dominant Class ---------------- Mutant | -10/Materials Mutant | -10/Subcaves Tank | -8/Materials Gunner | -8/Garrison Tank | -8/Materials Bothacker-Gunner | -8/Garrison Bothacker-Gunner | -8/Materials Bothacker-Tank | -8/Garrison Bothacker-Gunner | -7/Factory Bothacker-Gunner | -7/Waste Hauler-Gunner | -7/Factory Botlord-Gunner | -7/Garrison Botlord-Tank | -6/Factory Bothacker-Tank | -6/Waste Bothacker-Tank | -6/Factory Botlord-Tank | -6/Garrison Botlord-Tank | -5/Factory Botlord-Skirmisher | -5/Waste Botlord-Tank | -5/Factory Botlord-Tank | -5/Garrison Resources | -11 -10 -10 -8 -8 -8 -8 -8 -8 -7 -7 -7 -7 -6 -6 -6 -6 -5 -5 -5 -5 ----------- Run | Yrd Mat Sub Mat Gar Mat Gar Mat Gar Fac Was Fac Gar Fac Was Fac Gar Fac Was Fac Gar Matter Collected 12197 | 209 66 59 83 107 178 1071 583 277 583 606 801 558 656 427 2365 621 593 637 716 1001 Remotely 93 | . . . . . . . . . . . . . . . 93 . . . . . Salvage Created 16899 | 119 672 660 301 333 703 1614 857 480 930 1072 2038 710 581 1264 2568 558 339 670 295 135 Parts 789 | 5 40 43 11 18 30 82 55 35 57 9 112 40 30 8 129 33 16 6 25 5 Haulers Intercepted 9 | . 1 . . . 1 . 3 . 1 . 1 . 1 . 1 . . . . . Recyclers Shooed 14 | . 2 . . . . . . . 3 . 2 . . . 6 . 1 . . . Parts Field Recycled . | . . . . . . . . . . . . . . . . . . . . . Retrieved Matter . | . . . . . . . . . . . . . . . . . . . . . Parts Self-Destructed 4 | . . 4 . . . . . . . . . . . . . . . . . . Prevented . | . . . . . . . . . . . . . . . . . . . . . Parts Restored . | . . . . . . . . . . . . . . . . . . . . . Kills | -11 -10 -10 -8 -8 -8 -8 -8 -8 -7 -7 -7 -7 -6 -6 -6 -6 -5 -5 -5 -5 ------- Run | Yrd Mat Sub Mat Gar Mat Gar Mat Gar Fac Was Fac Gar Fac Was Fac Gar Fac Was Fac Gar Combat Hostiles Destroyed 345 | . 9 12 6 7 14 30 18 15 16 3 38 20 15 5 46 14 8 2 6 61 Guns 12 | . 6 4 2 . . . . . . . . . . . . . . . . . Cannons 173 | . . 5 2 7 13 17 13 8 6 3 29 11 12 2 27 5 2 2 6 3 AOE 139 | . 3 . 1 . . 12 4 6 8 . 7 9 3 . 15 7 6 . . 58 Classes Destroyed 24 | 2 7 2 . 1 2 2 1 1 1 1 1 . . . 1 . . 1 . 1 Worker 19 | . 3 . . . 2 . . . 5 . 3 . . . 5 . 1 . . . Builder 11 | . 2 . . . . . . . 2 . 2 . . . 3 . 1 . 1 . Tunneler 4 | 1 . . . . . . . . . . 2 . . . 1 . . . . . Hauler 9 | . 1 . . . 1 . 3 . 1 . 1 . 1 . 1 . . . . . Recycler 9 | 1 3 . . . . . . . 1 . 2 . . . 2 . . . . . Mechanic 3 | . . . . . . . . . . . 1 . . . 2 . . . . . Operator 9 | . 1 . . . 1 . . . 1 . 3 . . . 3 . . . . . Watcher 17 | . 2 . 1 . 1 . 3 . 2 . 2 . 2 . 3 1 . . . . Swarmer 71 | . 6 . . 1 3 12 8 4 . . 4 10 4 . 9 4 5 . . 1 Cutter 7 | . . . . . . . . 2 . . . . . . 1 4 . . . . Grunt 96 | . 3 . 6 2 8 8 4 3 7 . 23 8 8 . 10 4 2 . . . Brawler 6 | . . . . . . . 1 . . . 1 1 1 . 2 . . . . . Duelist 8 | . . . . . 1 . 1 . 1 . 2 . . . 2 . . . 1 . Protector 1 | . . . . . . . . . 1 . . . . . . . . . . . Sentry 23 | . . . . 4 1 3 4 2 . . 2 . . . 6 . . . 1 . Specialist 9 | . . . . . . 3 . . 1 . . 1 . . 4 . . . . . Hunter 18 | . . . . . 1 1 . . 4 . 2 . . . 5 . . . 4 1 Programmer 25 | . . . . . . 3 . 4 2 . 4 . 2 . 6 2 1 . 1 . Behemoth 1 | . . . . . . . . . . . . . . . 1 . . . . . Compactor 10 | . . . . . . . . . . 3 . . . 5 . . . 2 . . Artisan 1 | . . 1 . . . . . . . . . . . . . . . . . . Subdweller 12 | . . 12 . . . . . . . . . . . . . . . . . . Assembled 59 | . . . . . . . . . . . . . . . . . . . . 59 Thug 1 | . . . . . . . . . . . . . . . . . . 1 . . Martyr 2 | . . . . . . . . . . . . . . . . . . 2 . . Infiltrator 1 | . . . . . . . . . . . . . . . . . . . . 1 Best Kill Streak 58 | 2 11 3 3 4 9 5 4 3 9 2 7 11 4 2 9 4 4 1 2 58 Combat Bots Only 58 | . 4 3 3 4 8 5 3 3 6 2 5 11 3 2 8 4 3 1 2 58 Max Kills in Single Turn 9 | 1 3 1 1 1 1 2 2 3 3 1 3 4 3 1 4 3 2 1 1 9 Gunslinging 1 | . 1 . . . . . . . . . . . . . . . . . . . Exploded 9 | . 2 . 1 . . 2 2 3 2 . 2 4 3 . 4 3 2 . . 9 Melee . | . . . . . . . . . . . . . . . . . . . . . Uniques/NPCs Destroyed . | . . . . . . . . . . . . . . . . . . . . . Combat | -11 -10 -10 -8 -8 -8 -8 -8 -8 -7 -7 -7 -7 -6 -6 -6 -6 -5 -5 -5 -5 -------- Run | Yrd Mat Sub Mat Gar Mat Gar Mat Gar Fac Was Fac Gar Fac Was Fac Gar Fac Was Fac Gar Hostile Shots Fired 1416 | . 20 33 33 18 82 132 50 77 55 . 141 62 75 . 444 51 37 . 59 47 Missed 464 | . 2 14 5 4 22 49 17 18 14 . 52 21 31 . 153 15 11 . 21 15 Hits 952 | . 18 19 28 14 60 83 33 59 41 . 89 41 44 . 291 36 26 . 38 32 Melee 15 | . . . 1 . . . . 2 5 . 1 . . . 4 1 . . . 1 Projectile 937 | . 18 19 27 14 60 83 33 57 36 . 88 41 44 . 287 35 26 . 38 31 AOE 2 | . . . . . . . . 1 . . . . . . 1 . . . . . Critical Strikes 28 | . . . 2 1 2 2 . 2 2 . 4 1 1 . 4 3 1 . 1 2 Part Disruptions 4 | . . . . . . . . 1 . . . . . . 3 . . . . . Damage Taken 12693 | . 189 425 497 221 707 1106 431 789 667 . 1326 491 326 . 3380 598 587 . 369 584 Core 1087 | . 19 98 101 62 38 101 31 48 49 . 96 56 21 . 240 52 42 . 22 11 Absorbed by Shields 2027 | . . . . . . . . 90 . . 171 243 291 . 909 49 16 . 249 9 Ignored by Resistances 660 | . . . . . . . . . . . . . 81 . 201 . 42 . 148 188 Regen/Repaired (Parts) 3012 | . . . . . . . 518 374 394 . 1102 . . . 247 . 333 44 . . Core Remaining (%) 67 | 100 . 55 . . . . . 30 . . . 71 . . . 80 . . . . Volleys Fired 1189 | 9 28 38 18 23 47 104 56 43 42 28 92 45 59 104 208 50 72 31 44 48 Largest 5 | 2 2 2 3 3 3 5 3 3 3 3 3 3 1 1 2 1 1 2 1 1 Hottest 300 | 60 90 90 180 180 180 300 180 180 240 270 270 270 65 105 170 105 65 170 70 70 Shots Fired 1841 | 15 56 62 52 53 136 201 135 89 65 76 193 81 60 104 212 52 72 35 44 48 Gun 139 | 15 56 49 19 . . . . . . . . . . . . . . . . . Cannon 1374 | . . 13 33 48 136 158 121 84 50 72 179 65 36 97 152 23 35 31 25 16 Launcher 120 | . . . . 5 . 26 5 5 11 . 3 6 2 . 24 7 4 . . 22 Special 208 | . . . . . . 17 9 . 4 4 11 10 22 7 36 22 33 4 19 10 Kinetic 290 | 9 . . 4 . . . . . 8 . . 6 36 14 121 8 19 27 22 16 Thermal 1118 | 6 . 13 37 48 136 175 121 84 28 72 179 59 . 83 31 15 24 4 3 . Explosive 31 | . . . . . . . . 5 4 . . . . . . . . . . 22 Electromagnetic 219 | . 56 49 11 5 . 26 5 . 21 . 3 6 2 . 24 7 4 . . . Robot Hit Streak 36 | 3 7 23 14 9 14 22 11 20 14 18 19 14 17 36 20 12 22 14 10 8 Robot Miss Streak 4 | 2 4 3 3 1 4 3 4 2 1 4 3 4 2 1 3 3 2 3 1 3 Penetration Max 1 | . . . . . . . . . . . . . 1 . 1 . . . . . Secondary Targets 4 | . 3 . 1 . . . . . . . . . . . . . . . . . Max Gunslinging Chain 1 | . 1 . 1 . . . . . . . . . . . . . . . . . Shots Hit Robots 1165 | 9 34 52 35 20 83 126 62 52 47 66 109 40 48 91 136 26 47 29 31 22 Core Hits 580 | 4 26 22 12 9 24 59 28 21 41 15 60 24 16 8 91 19 11 7 7 76 Critical Kills 5 | . . . 1 . . . 1 . . . . . . 3 . . . . . . Critical Parts Destroyed 1 | . . . . . . . . . 1 . . . . . . . . . . . Critical Strikes 27 | . . . 1 . . . 1 . 2 . . 1 2 4 13 . 1 1 1 . Meltdown 5 | . . . 1 . . . 1 . . . . . . 3 . . . . . . Blast 21 | . . . . . . . . . 1 . . 1 2 1 13 . 1 1 1 . Smash 1 | . . . . . . . . . 1 . . . . . . . . . . . Melee Attacks 48 | . . 1 . . 7 23 . 2 14 . . . . . 1 . . . . . Impact 4 | . . . . . . . . 2 2 . . . . . . . . . . . Slashing 38 | . . 1 . . 2 23 . . 12 . . . . . . . . . . . Piercing . | . . . . . . . . . . . . . . . . . . . . . Sneak Attacks 11 | . . . . . 6 . . . 4 . . . . . 1 . . . . . Combat Hostiles . | . . . . . . . . . . . . . . . . . . . . . Follow-up Attacks . | . . . . . . . . . . . . . . . . . . . . . Damage Inflicted 51908 | 89 1012 1003 1051 559 1945 4296 1653 1757 2825 2412 5151 1791 2284 3351 9531 1353 1297 1806 1077 5665 Guns 1559 | 89 559 670 241 . . . . . . . . . . . . . . . . . Cannons 33730 | . . 333 556 538 1879 2168 1472 1410 819 2412 3780 1196 2085 3351 6855 503 832 1806 1077 658 Explosions 14541 | . 447 . 245 21 . 764 181 343 1464 . 1336 595 199 . 2676 850 413 . . 5007 Melee 1862 | . . . . . 66 1254 . . 542 . . . . . . . . . . . Ramming 54 | . 6 . 9 . . . . 4 . . 35 . . . . . . . . . Kinetic 13911 | 34 . . 47 . . . . . 136 . . 217 2085 815 6263 268 669 1642 1077 658 Thermal 21785 | 55 330 333 820 538 1879 2348 1472 1410 421 2412 4707 1141 . 2536 769 235 215 164 . . Explosive 6034 | . . . . . . . . 343 684 . . . . . . . . . . 5007 Electromagnetic 8262 | . 676 670 175 21 . 694 181 . 1042 . 409 433 199 . 2499 850 413 . . . Impact 49 | . . . . . . . . . 49 . . . . . . . . . . . Slashing 1813 | . . . . . 66 1254 . . 493 . . . . . . . . . . . Piercing . | . . . . . . . . . . . . . . . . . . . . . Highest Corruption 30 | . . . . . 25 28 28 25 . 7 22 22 . . 30 30 3 3 3 4 Average Corruption 13 | . . . . . 19 27 25 24 . 7 12 2 . . 3 30 2 3 3 3 Corruption Purged 8 | . . . . . . . 5 . . . 3 . . . . . . . . . Corruption Blocked . | . . . . . . . . . . . . . . . . . . . . . Effects 465 | . . . . . 26 71 64 54 . . 83 9 . . 48 58 17 7 14 14 Message Errors 103 | . . . . . 5 10 13 13 . . 20 2 . . 10 16 6 1 5 2 Matter Fused 103 | . . . . . 6 14 17 9 . . 16 3 . . 12 16 4 1 2 3 Heat Flow Errors 43 | . . . . . 1 6 7 4 . . 9 . . . 2 4 3 2 2 3 Energy Discharges 57 | . . . . . 4 9 11 6 . . 8 2 . . 5 7 1 2 1 1 Parts Rejected 7 | . . . . . 1 . . 2 . . . . . . . 2 1 . 1 . Parts Fused 6 | . . . . . . 1 . 1 . . 2 . . . 1 . . 1 . . Data Loss (minor) 65 | . . . . . 2 13 7 5 . . 16 2 . . 11 6 . . 1 2 Data Loss (major) 14 | . . . . . 2 3 2 2 . . 2 . . . 1 1 . . 1 . Misfires 18 | . . . . . . 3 1 1 . . 5 . . . 3 3 1 . . 1 Alerts 8 | . . . . . 1 3 . 1 . . 1 . . . . . . . 1 1 Misdirections 2 | . . . . . . . . . . . . . . . . 2 . . . . Weapon Failures 39 | . . . . . 4 9 6 10 . . 4 . . . 3 1 1 . . 1 Overload Shots 5 | . . . . . . . . . . . . . . 1 2 1 . 1 . . Overflow Damage 2828 | . 4 . 7 . 98 183 8 42 270 . 214 65 227 . 869 51 145 37 200 408 Projectiles 1918 | . . . 7 . 62 34 8 42 19 . 140 49 223 . 848 51 125 37 200 73 Explosions 530 | . 4 . . . . 12 . . 44 . 74 16 4 . 21 . 20 . . 335 Melee 380 | . . . . . 36 137 . . 207 . . . . . . . . . . . Knockbacks 41 | . . . . . . . . . 1 . . 1 8 . 19 . 5 . 5 2 Impact 1 | . . . . . . . . . 1 . . . . . . . . . . . Kinetic 39 | . . . . . . . . . . . . 1 8 . 18 . 5 . 5 2 Secondary 1 | . . . . . . . . . . . . . . . 1 . . . . . Self-Inflicted Damage 874 | . 27 . 27 14 . 133 . 53 . . 187 135 . . 134 53 10 . . 101 Shots 32 | . 1 . 1 1 . 10 . 1 . . 4 5 . . 3 2 1 . . 3 Rammed 8 | . 2 . 3 . . . . 1 . . 2 . . . . . . . . . Targets Rammed 9 | . 3 . 3 . . . . 1 . . 2 . . . . . . . . . Kicked . | . . . . . . . . . . . . . . . . . . . . . Crushed 1 | . 1 . . . . . . . . . . . . . . . . . . . Highest Temperature 494 | 20 180 . 494 335 385 300 354 280 324 212 461 238 11 16 254 256 219 244 174 234 Average Temperature 106 | 15 59 . 185 135 108 85 109 87 96 86 136 74 11 12 97 108 107 100 82 115 Received Heat Transfer 2336 | . 24 24 279 99 297 225 90 38 123 . 391 76 129 . 285 125 66 . 56 9 Effects 12 | . . . 6 . . 1 1 . . . 4 . . . . . . . . . Shutdowns 3 | . . . 3 . . . . . . . . . . . . . . . . . Energy Bleed 3 | . . . 1 . . 1 1 . . . . . . . . . . . . . Interference 1 | . . . . . . . . . . . 1 . . . . . . . . . Short Circuit 1 | . . . 1 . . . . . . . . . . . . . . . . . Damage (minor) 1 | . . . 1 . . . . . . . . . . . . . . . . . Damage (major) 3 | . . . . . . . . . . . 3 . . . . . . . . . Siege Activations . | . . . . . . . . . . . . . . . . . . . . . Martial Activations . | . . . . . . . . . . . . . . . . . . . . . Shielding Activations . | . . . . . . . . . . . . . . . . . . . . . Robots Disrupted 2 | . . . . . . . . . . 1 . 1 . . . . . . . . Combat Hostiles 2 | . . . . . . . . . . 1 . 1 . . . . . . . . Robots Corrupted 13 | . . 3 . . . 1 . . 2 . 2 . . . 3 2 . . . . Combat Hostiles 13 | . . 3 . . . 1 . . 2 . 2 . . . 3 2 . . . . Parts Fried 43 | . 1 11 . . . 2 . . 5 . 5 . . . 16 3 . . . . Impact Corruptions 3 | . . . . . . . . . 3 . . . . . . . . . . . Robots Melted 8 | . . . 1 . 1 1 1 1 . . . . . 3 . . . . . . Combat Hostiles 7 | . . . 1 . 1 . 1 1 . . . . . 3 . . . . . . Parts Melted 30 | . 1 . 2 . 6 5 1 3 1 . 2 . . 7 2 . . . . . Heat Transferred 21654 | 125 300 444 1213 814 2960 3842 2294 1961 661 . 800 150 . 3930 1200 280 450 230 . . Parts Sabotaged 1 | . . . . . . . . . . . . . . . . . . . . 1 Parts Stolen . | . . . . . . . . . . . . . . . . . . . . . Parts Stripped . | . . . . . . . . . . . . . . . . . . . . . Power Chain Reactions 28 | . 5 . 3 . . 3 1 . 1 . 8 4 . . 3 . . . . . Alert | -11 -10 -10 -8 -8 -8 -8 -8 -8 -7 -7 -7 -7 -6 -6 -6 -6 -5 -5 -5 -5 ------- Run | Yrd Mat Sub Mat Gar Mat Gar Mat Gar Fac Was Fac Gar Fac Was Fac Gar Fac Was Fac Gar Maximum Alert Level 5 | . . . 1 2 3 4 2 3 2 . 2 4 3 . 4 4 4 2 5 5 Low Security (%) 27 | 100 100 . 85 20 12 3 . 6 44 100 40 . 8 100 33 . . . 8 . Level 1 23 | . . . 14 59 66 7 18 18 52 . 32 . 13 . 32 . 13 74 19 . Level 2 21 | . . . . 20 16 27 81 28 2 . 26 33 63 . 10 . 30 25 26 . Level 3 13 | . . . . . 4 47 . 45 . . . 24 14 . 21 19 29 . 1 . Level 4 11 | . . . . . . 15 . . . . . 41 . . 2 80 26 . 19 58 Level 5 2 | . . . . . . . . . . . . . . . . . . . 22 41 High Security . | . . . . . . . . . . . . . . . . . . . 2 . Max Security . | . . . . . . . . . . . . . . . . . . . . . Peak Influence 1947 | 5 168 . 225 446 717 1259 613 899 471 88 600 1210 731 130 1223 1556 1286 443 1810 1947 Initial 1218 | . . . . 26 217 180 613 154 471 88 . 407 634 130 . 847 816 443 182 1218 Average 522 | . 54 . 51 297 298 788 478 596 207 18 248 897 573 42 395 1306 789 352 926 1573 Influence Increases 16186 | 10 369 . 328 420 955 1109 599 765 533 7 1406 913 718 6 2292 799 1600 8 2520 829 Destroy 0b10 Robot/C 7580 | . 180 . 120 140 400 700 400 460 320 . 780 440 400 . 1080 420 580 . 960 200 Destroy 0b10 Robot/NC 550 | 10 60 . 5 . 30 20 35 . 65 . 80 . 20 . 110 5 50 . 60 . Destroy Leader 1156 | . 46 . 22 . 116 50 104 30 46 . 136 40 56 . 272 10 78 . 140 10 Allied During Kill 1820 | . . . . . 36 23 5 35 . . 8 22 42 . 23 94 617 . 886 29 Trap Triggered on 0b10 30 | . . . . . . . . . . . . . . . 30 . . . . . Successful Hack 273 | . 19 . 3 12 14 7 2 12 15 . 16 16 32 . 96 . 14 . 5 10 Disable Machine 1230 | . 45 . . 15 15 . 30 . 30 . 255 30 150 . 150 15 105 . 375 15 Anti-Garrison Action 1350 | . . . . 150 . 250 . 150 . . . 200 . . 150 200 . . . 250 Destroy Structure 1195 | . 19 . 14 73 14 59 23 78 27 7 116 45 18 6 98 40 156 8 94 300 Lose Combat Pursuer 270 | . . . . 30 30 . . . 30 . 15 120 . . 15 15 . . . 15 Miscellaneous 732 | . . . 164 . 300 . . . . . . . . . 268 . . . . . Influence Decreases 14249 | 10 304 65 287 15 1123 128 1620 104 1180 259 824 285 1555 379 1082 453 1890 1013 1041 632 Entered New Map 5217 | . . 32 . 15 229 98 646 84 428 164 . 175 576 243 . 363 740 823 79 522 Time Decay 4552 | 10 304 33 117 . 334 . 464 . 502 55 499 . 404 136 592 . 490 190 422 . Lost Part 240 | . . . 20 . . 30 . . 30 . 20 10 10 . 90 10 10 . . 10 Lost Ally 1640 | . . . . . 110 . 60 20 70 40 30 100 40 . 250 80 200 . 540 100 Purge Threat 2600 | . . . 150 . 450 . 450 . 150 . 275 . 525 . 150 . 450 . . . Squads Dispatched 89 | . 3 . 5 . 7 . 2 . 5 . 10 . 7 . 27 . 8 . 15 . Investigation 21 | . 2 . 2 . 2 . 1 . . . 2 . 1 . 5 . 2 . 4 . Extermination 22 | . . . . . . . . . 2 . 4 . 2 . 8 . 3 . 3 . Reinforcement 27 | . 1 . 2 . 5 . 1 . 2 . 2 . 3 . 9 . 2 . . . Assault 13 | . . . . . . . . . . . 1 . 1 . 4 . . . 7 . Garrison 6 | . . . 1 . . . . . 1 . 1 . . . 1 . 1 . 1 . Intercept . | . . . . . . . . . . . . . . . . . . . . . Searches Triggered . | . . . . . . . . . . . . . . . . . . . . . Construction Impeded 7 | . . . . . 2 . . . 1 . 1 . 1 . 2 . . . . . Haulers Reinforced 2 | . . . . . . . . . . . . . 1 . . . 1 . . . Active Scanning Responses . | . . . . . . . . . . . . . . . . . . . . . Cargo Convoy Interrupts 2 | . . . . . . . . . 1 . . . . . 1 . . . . . Stealth | -11 -10 -10 -8 -8 -8 -8 -8 -8 -7 -7 -7 -7 -6 -6 -6 -6 -5 -5 -5 -5 --------- Run | Yrd Mat Sub Mat Gar Mat Gar Mat Gar Fac Was Fac Gar Fac Was Fac Gar Fac Was Fac Gar Distress Signals 17 | . . . . . 2 . 1 . . . 4 . 1 . 5 . . . 4 . Communications Jammed . | . . . . . . . . . . . . . . . . . . . . . Distress Signals . | . . . . . . . . . . . . . . . . . . . . . Times Spotted 643 | . 11 14 16 6 28 31 31 23 26 7 51 32 38 6 121 29 45 5 61 62 Peak Tracking Total 11 | . 3 3 5 6 6 3 5 4 6 4 5 6 4 4 11 5 5 2 7 11 Tactical Retreats 16 | . . 1 . 1 1 . . . 1 1 1 5 . . 1 1 . . . 3 Traps | -11 -10 -10 -8 -8 -8 -8 -8 -8 -7 -7 -7 -7 -6 -6 -6 -6 -5 -5 -5 -5 ------- Run | Yrd Mat Sub Mat Gar Mat Gar Mat Gar Fac Was Fac Gar Fac Was Fac Gar Fac Was Fac Gar Traps Triggered 49 | . 2 . . 1 . 9 1 4 1 . 3 7 2 . 5 7 3 . 1 3 Indirectly 8 | . . . . . . 5 . . . . . 1 . . 2 . . . . . Trap Hack Attempts 20 | . . . . . . . . . . . . . . . 20 . . . . . Triggered . | . . . . . . . . . . . . . . . . . . . . . Disarmed . | . . . . . . . . . . . . . . . . . . . . . Reprogrammed 3 | . . . . . . . . . . . . . . . 3 . . . . . Reused 3 | . . . . . . . . . . . . . . . 3 . . . . . Traps Extracted . | . . . . . . . . . . . . . . . . . . . . . Installed . | . . . . . . . . . . . . . . . . . . . . . Triggered 3 | . . . . . . . . . . . . . . . 3 . . . . . Most Traps Carried 1 | . . . . . . . . . . . 1 1 . . . . . . . . Machines | -11 -10 -10 -8 -8 -8 -8 -8 -8 -7 -7 -7 -7 -6 -6 -6 -6 -5 -5 -5 -5 ---------- Run | Yrd Mat Sub Mat Gar Mat Gar Mat Gar Fac Was Fac Gar Fac Was Fac Gar Fac Was Fac Gar Machines Disabled 104 | . 3 . . 5 1 4 2 3 2 . 17 6 11 . 11 5 7 . 25 2 Max in Single Turn 5 | . 1 . . 2 1 2 1 1 1 . 5 2 1 . 5 1 2 . . 1 Garrison Access 12 | . . . . . . . . . 2 . 2 . 1 . 3 . 2 . 2 . Garrison Relay 15 | . . . . 2 . 2 . 3 . . . 3 . . . 4 . . . 1 Phase Generator 2 | . . . . 1 . 1 . . . . . . . . . . . . . . Machines Repaired 2 | . . . . . . . . . . . 1 . 1 . . . . . . . Machines Dismantled . | . . . . . . . . . . . . . . . . . . . . . Machines Sabotaged . | . . . . . . . . . . . . . . . . . . . . . Overloaded Fab Kills . | . . . . . . . . . . . . . . . . . . . . . Hacking | -11 -10 -10 -8 -8 -8 -8 -8 -8 -7 -7 -7 -7 -6 -6 -6 -6 -5 -5 -5 -5 --------- Run | Yrd Mat Sub Mat Gar Mat Gar Mat Gar Fac Was Fac Gar Fac Was Fac Gar Fac Was Fac Gar Machines Accessed 87 | . 3 . 4 1 2 3 9 1 9 . 11 2 7 . 17 1 10 . 5 2 Terminals 49 | . 3 . 3 1 1 3 6 1 4 . 6 2 4 . 5 1 5 . 2 2 Fabricators 11 | . . . . . . . . . 1 . . . 2 . 5 . 1 . 2 . Repair Stations 5 | . . . . . . . 1 . 1 . 1 . . . 2 . . . . . Recycling Units . | . . . . . . . . . . . . . . . . . . . . . Scanalyzers 6 | . . . . . . . 1 . 1 . 1 . . . 2 . 1 . . . Garrison Access 16 | . . . 1 . 1 . 1 . 2 . 3 . 1 . 3 . 3 . 1 . Total Hacks 201 | . 10 . 12 2 5 6 17 2 23 . 24 3 12 . 50 1 14 . 14 6 Successful 110 | . 5 . 4 1 3 2 9 2 15 . 15 1 8 . 30 . 4 . 10 1 Failed 90 | . 5 . 7 1 2 4 8 . 8 . 9 2 4 . 20 1 10 . 4 5 Catastrophic 11 | . 1 . 1 . 1 . 1 . . . 2 1 . . 3 . 1 . . . Database Lockouts 1 | . . . 1 . . . . . . . . . . . . . . . . . Manual 120 | . 11 . 11 1 4 1 12 1 12 . 9 3 9 . 23 . 10 . 9 4 Terminals 110 | . 10 . 11 2 3 6 12 2 9 . 11 3 7 . 14 1 8 . 5 6 Fabricators 31 | . . . . . . . . . 4 . . . 3 . 14 . 2 . 8 . Repair Stations 22 | . . . . . . . 2 . 6 . 8 . . . 6 . . . . . Recycling Units . | . . . . . . . . . . . . . . . . . . . . . Scanalyzers 20 | . . . . . . . 2 . 2 . 2 . . . 13 . 1 . . . Garrison Access 18 | . . . 1 . 2 . 1 . 2 . 3 . 2 . 3 . 3 . 1 . Terminal Hacks 29 | . 5 . 2 1 1 2 2 2 3 . 3 1 2 . 2 . . . 2 1 Part Schematic 2 | . 1 . . . . . . . . . . . . . . . . . 1 . Robot Schematic 2 | . . . . . 1 . . . . . . . 1 . . . . . . . Robot Analysis 5 | . 4 . 1 . . . . . . . . . . . . . . . . . Open Door 1 | . . . . . . 1 . . . . . . . . . . . . . . Emergency Access Points 2 | . . . . . . . . 1 . . . . . . . . . . . 1 Terminal Index 3 | . . . . . . . . . 1 . 1 . . . . . . . 1 . Unreport Threat 5 | . . . 1 . . . 2 . 1 . . . 1 . . . . . . . Locate Traps 1 | . . . . . . . . . . . . . . . 1 . . . . . Recall Reinforcements 1 | . . . . . . . . . . . . . . . 1 . . . . . Hauler Manifests 1 | . . . . . . . . . . . 1 . . . . . . . . . Registered Components 1 | . . . . . . . . . 1 . . . . . . . . . . . Zone Layout 1 | . . . . . . . . . . . 1 . . . . . . . . . Garrison Registry 4 | . . . . 1 . 1 . 1 . . . 1 . . . . . . . . Fabricator Hacks 9 | . . . . . . . . . 1 . . . 1 . 3 . . . 4 . Network Status 3 | . . . . . . . . . 1 . . . 1 . 1 . . . . . Load Schematic 3 | . . . . . . . . . . . . . . . 1 . . . 2 . Build 3 | . . . . . . . . . . . . . . . 1 . . . 2 . Repair Station Hacks 14 | . . . . . . . 2 . 2 . 6 . . . 4 . . . . . Scan Component 7 | . . . . . . . 1 . 1 . 3 . . . 2 . . . . . Repair 7 | . . . . . . . 1 . 1 . 3 . . . 2 . . . . . Recycling Unit Hacks . | . . . . . . . . . . . . . . . . . . . . . Scanalyzer 16 | . . . . . . . 2 . 2 . 1 . . . 11 . . . . . Insert Component 4 | . . . . . . . . . . . . . . . 4 . . . . . Analyze 6 | . . . . . . . . . . . . . . . 6 . . . . . Retrieve Study 6 | . . . . . . . 2 . 2 . 1 . . . 1 . . . . . Garrison Access Hacks 16 | . . . 1 . 1 . 1 . 2 . 3 . 1 . 3 . 3 . 1 . Unlock Access 7 | . . . 1 . 1 . 1 . . . 1 . . . 1 . 1 . 1 . Seal Access 9 | . . . . . . . . . 2 . 2 . 1 . 2 . 2 . . . Unauthorized Hacks 26 | . . . 1 . 1 . 2 . 5 . 2 . 4 . 7 . 1 . 3 . Terminals 12 | . . . 1 . . . 2 . 2 . 2 . 1 . 3 . 1 . . . Assimilate 1 | . . . . . . . . . . . . . . . 1 . . . . . Botnet 8 | . . . 1 . . . 1 . 1 . 2 . 1 . 1 . 1 . . . Operators 3 | . . . . . . . 1 . 1 . . . . . 1 . . . . . Fabricators 11 | . . . . . . . . . 2 . . . 2 . 4 . . . 3 . Prioritize 1 | . . . . . . . . . . . . . . . . . . . 1 . Liberate 2 | . . . . . . . . . 1 . . . 1 . . . . . . . Fabnet 5 | . . . . . . . . . . . . . . . 3 . . . 2 . Haulers 3 | . . . . . . . . . 1 . . . 1 . 1 . . . . . Repair Stations 1 | . . . . . . . . . 1 . . . . . . . . . . . Mechanics 1 | . . . . . . . . . 1 . . . . . . . . . . . Recycling Units . | . . . . . . . . . . . . . . . . . . . . . Scanalyzers . | . . . . . . . . . . . . . . . . . . . . . Garrison Access 2 | . . . . . 1 . . . . . . . 1 . . . . . . . Restock 1 | . . . . . . . . . . . . . 1 . . . . . . . Reprogram 1 | . . . . . 1 . . . . . . . . . . . . . . . Data Cores Recovered 4 | . . . . . 1 . . . . . 1 . . . 1 . . . 1 . Used . | . . . . . . . . . . . . . . . . . . . . . Hacking Detections 52 | . 3 . 3 1 2 2 6 . 4 . 2 . 3 . 14 1 6 . 4 1 Full Trace Events 19 | . 1 . 2 . 1 . . . . . 1 1 1 . 5 . 2 . 3 2 Feedback Events . | . . . . . . . . . . . . . . . . . . . . . Feedback Blocked . | . . . . . . . . . . . . . . . . . . . . . Robot Schematics Acquired 2 | . . . . . 1 . . . . . . . 1 . . . . . . . Robots Built . | . . . . . . . . . . . . . . . . . . . . . Authchips . | . . . . . . . . . . . . . . . . . . . . . Time . | . . . . . . . . . . . . . . . . . . . . . Total Robot Build Rating . | . . . . . . . . . . . . . . . . . . . . . Part Schematics Acquired 6 | . 1 . . . . . . . . . . . . . 4 . . . 1 . Parts Built 3 | . . . . . . . . . . . . . . . 1 . . . 2 . Authchips . | . . . . . . . . . . . . . . . . . . . . . Time 351 | . . . . . . . . . . . . . . . 152 . . . 199 . Total Part Build Rating 15 | . . . . . . . . . . . . . . . 5 . . . 10 . Part Studies Acquired 6 | . . . . . . . 2 . 2 . 1 . . . 1 . . . . . Parts Repaired 7 | . . . . . . . 1 . 1 . 3 . . . 2 . . . . . Time 248 | . . . . . . . 44 . 22 . 138 . . . 44 . . . . . Parts Recycled . | . . . . . . . . . . . . . . . . . . . . . Recycled Matter . | . . . . . . . . . . . . . . . . . . . . . Retrieved Matter . | . . . . . . . . . . . . . . . . . . . . . Retrieved Components . | . . . . . . . . . . . . . . . . . . . . . Parts Scanalyzed 4 | . . . . . . . . . . . . . . . 4 . . . . . Part Schematics Acquired 4 | . . . . . . . . . . . . . . . 4 . . . . . Parts Damaged 2 | . . . . . . . . . . . . . . . 2 . . . . . Bothacking | -11 -10 -10 -8 -8 -8 -8 -8 -8 -7 -7 -7 -7 -6 -6 -6 -6 -5 -5 -5 -5 ------------ Run | Yrd Mat Sub Mat Gar Mat Gar Mat Gar Fac Was Fac Gar Fac Was Fac Gar Fac Was Fac Gar Used RIF Installer 6 | . . . . 1 . 1 . 2 . . . 1 . . . 1 . . . . Hotswap 1 | . . . . . . . . . . . . 1 . . . . . . . . Command Fork 2 | . . . . . . 1 . . . . . . . . . 1 . . . . Patrol Navigation 1 | . . . . . . . . . . . 1 . . . . . . . . . Structural Interface 1 | . . . . . . . . 1 . . . . . . . . . . . . Autoassimilate 1 | . . . . . . . . 1 . . . . . . . . . . . . Robots Hacked 129 | . . . . . 2 . 5 . 3 . 7 5 15 6 24 14 19 4 24 1 Non-combat 26 | . . . . . 2 . 4 . 3 . 1 . 6 . 6 . 3 . 1 . Combat 103 | . . . . . . . 1 . . . 6 5 9 6 18 14 16 4 23 1 Autoassimilated 10 | . . . . . . . . . . . 1 . . . 2 4 1 . 2 . Robot Hacks Applied 139 | . . . . . 5 . 7 . 4 . 11 6 20 6 26 10 23 4 16 1 parse_system 10 | . . . . . . . . . . . 1 . 1 . 2 1 3 1 1 . find_chute 1 | . . . . . . . . . . . . . . . . . 1 . . . ignore_repairs 6 | . . . . . . . 2 . . . . . 3 . 1 . . . . . map_walls 1 | . . . . . . . . . . . . . 1 . . . . . . . find_fabricator 1 | . . . . . . . . . . . . . . . . . . . 1 . drop_inventory 2 | . . . . . . . . . . . . . 1 . . . . . 1 . ignore_parts 5 | . . . . . . . . . 2 . . . . . 3 . . . . . purge_threat 15 | . . . . . 4 . 1 . . . 2 . 3 . 1 . 4 . . . find_terminals 1 | . . . . . . . . . . . 1 . . . . . . . . . block_reporting 2 | . . . . . . . . . 1 . . . 1 . . . . . . . ignore_targets 9 | . . . . . . . . . . . . . . 6 . . . 3 . . find_garrison 9 | . . . . . . . 1 . . . 1 . 2 . 1 . 2 . 2 . overload_power 2 | . . . . . . . . . . . . . . . . . . . 2 . amplify_resonance 22 | . . . . . . . . . . . 2 2 4 . 6 1 2 . 5 . reboot_system 1 | . . . . . . . . . . . . . . . . . 1 . . . overwrite_iff 12 | . . . . . . . . . . . 3 2 1 . 3 . 1 . 2 . streamctrl_high 1 | . . . . . . . . . . . . . . . . 1 . . . . formatsys_low 10 | . . . . . 1 . 2 . 1 . 1 . 1 . 1 . 3 . . . formatsys_high 29 | . . . . . . . 1 . . . . 2 2 . 8 7 6 . 2 1 Relay Couplers Released 73 | . . . . 8 . 9 . 10 3 . . 11 2 . . 21 3 . 1 5 Machine Destruction 66 | . . . . 8 . 9 . 10 . . . 11 2 . . 17 3 . 1 5 Programmers 7 | . . . . . . . . . 3 . . . . . . 4 . . . . Attached 25 | . . . . . 2 . 2 . 1 . 3 3 4 . 2 4 3 . . 1 Fabnet Peak Effective % 9 | . . . . . . . . . . . . . . . . . 9 9 9 9 Autooverrided 13 | . . . . . . . . . . . . . . . . . 5 . 8 . Robots Rewired 11 | . . . . . . . . . 1 1 . 1 . . . 2 . . . 6 Allies Hacked 6 | . . . . . . . . 1 . . . . . . . 1 4 . . . Hacks Repelled . | . . . . . . . . . . . . . . . . . . . . . Allies | -11 -10 -10 -8 -8 -8 -8 -8 -8 -7 -7 -7 -7 -6 -6 -6 -6 -5 -5 -5 -5 -------- Run | Yrd Mat Sub Mat Gar Mat Gar Mat Gar Fac Was Fac Gar Fac Was Fac Gar Fac Was Fac Gar Total Allies 130 | . . . . . 8 2 3 2 4 2 5 6 5 . 14 14 22 19 15 9 Largest Group 28 | . . . . . 4 2 2 3 3 2 3 3 4 1 3 10 19 28 27 3 Highest-Rated Group 1166 | . . . . . 84 70 70 166 42 141 52 77 140 26 99 476 794 1166 1166 215 Highest-Rated Ally 142 | . . . . . 21 39 39 142 21 141 29 32 47 26 90 119 142 142 142 95 Total Orders 28 | . . . . . 1 . 3 5 8 1 . . 1 . 2 2 5 . . . STAY 15 | . . . . . 1 . 1 2 4 1 . . 1 . 1 1 3 . . . FOLLOW 8 | . . . . . . . 1 2 3 . . . . . 1 1 . . . . AID 5 | . . . . . . . 1 1 1 . . . . . . . 2 . . . Ally Attacks 892 | . . . . . 70 12 17 24 9 37 17 13 25 . 46 45 139 114 279 45 Total Damage 22058 | . . . . . 935 189 209 1057 213 587 243 399 1369 . 1221 886 2935 2213 8161 1441 Kills 160 | . . . . . 7 5 3 8 1 1 1 2 6 . 11 7 29 4 59 16 Allies Corrupted 8 | . . . . . . . . 1 . . . . 1 . 1 . 1 . 4 . Allies Melted 1 | . . . . . . . . . . . . . . . . . . . 1 . X0-1V1 Amusement Gains 206 | . 6 . 10 30 20 39 . 11 . . 10 5 . . 70 . 5 . . . Good Acts 136 | . . 9 4 5 3 6 9 2 12 2 15 8 11 5 19 7 8 3 5 3 Bad Acts 58 | . . 2 3 2 8 2 1 . 3 1 11 . 4 . 11 4 3 . 3 . Intel | -11 -10 -10 -8 -8 -8 -8 -8 -8 -7 -7 -7 -7 -6 -6 -6 -6 -5 -5 -5 -5 ------- Run | Yrd Mat Sub Mat Gar Mat Gar Mat Gar Fac Was Fac Gar Fac Was Fac Gar Fac Was Fac Gar Active Infowar (turns) 6720 | 25 1293 . 65 . . . . . . . 1 . . . 2115 1084 1296 394 446 1 Optics 5335 | . . . . . . . . . . . . . . . 2115 1084 1296 394 446 . Seismic 1383 | 25 1293 . 65 . . . . . . . . . . . . . . . . . Cloaking 48 | . . . . . . . . . . . . . . . . . . 48 . . Spoofing 1 | . . . . . . . . . . . . . . . . . . . . 1 Jamming 145 | . . . . . . . . . . . . . . . 145 . . . . . ECM 1 | . . . . . . . . . . . 1 . . . . . . . . . Robot Analysis Total 5 | . 4 . 1 . . . . . . . . . . . . . . . . . Derelict Logs Recovered . | . . . . . . . . . . . . . . . . . . . . . Drone Launches . | . . . . . . . . . . . . . . . . . . . . . Drone Recoveries . | . . . . . . . . . . . . . . . . . . . . . Exploration | -11 -10 -10 -8 -8 -8 -8 -8 -8 -7 -7 -7 -7 -6 -6 -6 -6 -5 -5 -5 -5 ------------- Run | Yrd Mat Sub Mat Gar Mat Gar Mat Gar Fac Was Fac Gar Fac Was Fac Gar Fac Was Fac Gar Turns Passed 21392 | 65 1305 903 302 606 747 1264 1165 880 1348 307 2053 881 962 439 3740 1084 1296 394 1050 601 Spaces Moved 11399 | 30 410 448 146 355 378 614 590 450 822 148 1115 449 518 159 2153 581 860 168 679 326 Core . | . . . . . . . . . . . . . . . . . . . . . Treads 863 | 5 410 448 . . . . . . . . . . . . . . . . . . Legs 25 | 25 . . . . . . . . . . . . . . . . . . . . Wheels 10511 | . . . 146 355 378 614 590 450 822 148 1115 449 518 159 2153 581 860 168 679 326 Hover . | . . . . . . . . . . . . . . . . . . . . . Flight . | . . . . . . . . . . . . . . . . . . . . . Fastest Speed 115 | 120 160 160 130 130 120 120 130 145 115 135 125 130 135 135 120 135 120 120 120 120 Average Speed 137 | 126 160 160 135 134 141 130 144 145 130 135 135 144 143 135 140 149 120 120 123 134 Slowest Speed 165 | 160 160 160 145 145 160 135 145 145 145 135 165 165 165 135 165 150 120 120 135 135 Overloaded Moves . | . . . . . . . . . . . . . . . . . . . . . Propulsion Burnouts . | . . . . . . . . . . . . . . . . . . . . . Robots Hopped . | . . . . . . . . . . . . . . . . . . . . . Potential Cave-ins 6 | . . . . . . . . . . . . . . . . . . . . 6 Cave-ins Triggered 2 | . . . . . . . . . . . . . . . 1 . . . . 1 Exploration Rate (%) 54 | 3 65 36 25 59 40 77 72 68 30 81 36 74 22 83 67 92 41 86 29 68 Regions Visited 20 Branch Regions 1 Pre-discovered Areas 1 | . . 1 . . . . . . . . . . . . . . . . . . Known Exits Taken 7 | . . 1 1 . 1 . 1 . . . 1 . . . 1 . . . 1 . Unknown Exits Taken 2 | 1 1 . . . . . . . . . . . . . . . . . . . Scrap Searched 6 | . . 6 . . . . . . . . . . . . . . . . . . Spaces Dug 35 | . . . . . 3 . 5 2 4 . 9 . . . 7 . 2 . 3 . Terrain Destroyed 1006 | . 17 1 11 90 16 90 20 47 33 7 133 36 8 6 96 5 18 3 10 359 Melee 6 | . . . . . 1 . . 2 3 . . . . . . . . . . . Projectile 218 | . . 1 1 . 15 . 17 . 1 7 53 18 8 6 51 5 18 3 10 4 AOE 782 | . 17 . 10 90 . 90 3 45 29 . 80 18 . . 45 . . . . 355 Terrain Rammed . | . . . . . . . . . . . . . . . . . . . . . Walls Destroyed . | . . . . . . . . . . . . . . . . . . . . . Machines Disabled . | . . . . . . . . . . . . . . . . . . . . . Actions | -11 -10 -10 -8 -8 -8 -8 -8 -8 -7 -7 -7 -7 -6 -6 -6 -6 -5 -5 -5 -5 --------- Run | Yrd Mat Sub Mat Gar Mat Gar Mat Gar Fac Was Fac Gar Fac Was Fac Gar Fac Was Fac Gar Total 15224 | 44 1001 573 209 444 478 882 789 585 1021 184 1444 603 661 275 2624 759 1054 313 849 432 Wait 1645 | . 546 68 13 37 27 44 95 29 71 7 149 35 43 1 157 34 77 109 97 6 Move 11386 | 29 409 447 146 354 377 613 590 449 822 147 1115 448 518 158 2153 580 860 167 679 325 Hop . | . . . . . . . . . . . . . . . . . . . . . Pick Up 164 | . 9 9 7 9 2 14 9 5 7 . 13 16 7 3 11 18 6 1 7 11 Fast Attach 77 | 1 . 1 5 1 2 1 3 2 14 . 7 5 7 2 11 6 2 1 4 2 Attach 66 | 2 . 1 4 2 1 8 3 3 4 . 5 2 3 1 14 3 5 . 4 1 Detach 15 | . . . . . . 2 . . 4 . . . . . 5 2 1 . 1 . Swap 227 | 1 4 3 5 5 11 20 20 12 24 2 34 14 11 3 17 4 17 3 5 12 Drop 164 | 2 2 5 8 12 3 9 9 5 17 . 10 22 8 3 19 9 5 1 7 8 Fire 1189 | 9 28 38 18 23 47 104 56 43 42 28 92 45 59 104 208 50 72 31 44 48 Melee 48 | . . 1 . . 7 23 . 2 14 . . . . . 1 . . . . . Ram 6 | . . . 3 . . . . 1 . . 2 . . . . . . . . . Kick . | . . . . . . . . . . . . . . . . . . . . . Crush 3 | . 3 . . . . . . . . . . . . . . . . . . . Escape Stasis 164 | . . . . . . 41 . 32 . . 8 13 . . 8 45 . . . 17 Rewire 22 | . . . . . 1 . 2 . 1 . . 1 1 . . 8 8 . . . Trap 20 | . . . . . . . . . . . . . . . 20 . . . . . Miscellaneous 28 | . . . . 1 . 3 2 2 1 . 9 2 4 . . . 1 . 1 2 Route ------- -11/Scrapyard -10/Materials (discovered 4 exits: [*Mat x2] / [*Min] / [*Sub]) -10/Subcaves -8/Materials (discovered 2 exits: [*Sto] / Gar) -8/Garrison (discovered 3 exits: *Mat x3) -8/Materials (discovered 3 exits: *Fac x2 / Gar) -8/Garrison (discovered 4 exits: *Fac x3 / *Mat) -8/Materials (discovered 5 exits: *Fac x3 / [*Sto] / Gar) -8/Garrison (discovered 3 exits: *Fac x3) -7/Factory -7/Waste -7/Factory (discovered 3 exits: *Fac x2 / Gar) -7/Garrison (discovered 3 exits: *Fac x3) -6/Factory (discovered 3 exits: *Fac x3) -6/Waste -6/Factory (discovered 6 exits: *Fac x3 / *Low x2 / Gar) -6/Garrison (discovered 3 exits: *Fac x3) -5/Factory (discovered 7 exits: *Fac x3 / *Upp x2 / Ext / Gar) -5/Waste -5/Factory (discovered 3 exits: *Upp x2 / Gar) -5/Garrison (discovered 2 exits: *Fac x2) History --------- Turn | Location | Event 18 | -11/Scrapyard | Discovered new exit (range 3) 66 | -11/Scrapyard | Entered Materials 309 | -10/Materials | Build established: Mutant 753 | -10/Materials | Discovered new exit (range 6) 982 | -10/Materials | Discovered new exit (range 9) 1097 | -10/Materials | Discovered new exit (range 7) 1174 | -10/Materials | Discovered new exit (range 6) 1356 | -10/Materials | Prayed at D.C.S.S. Altar Unit 1371 | -10/Materials | Entered Subcaves 1483 | -10/Subcaves | Ambushed by angry Subdweller bent on revenge 1564 | -10/Subcaves | Inventory capacity permanently improved by X0-1V1 (+1; -100 max core) 1743 | -10/Subcaves | Identified exit to Materials 1743 | -10/Subcaves | X0-1V1 revealed exit location to -8/Materials 1836 | -10/Subcaves | X0-1V1 activates XOMVISION 1881 | -10/Subcaves | Shifting Twisted Machinery released Barrage Gun 1903 | -10/Subcaves | Shifting Twisted Machinery released Sub. Monowheel 2049 | -10/Subcaves | Core integrity restored by X0-1V1 (+31) 2187 | -10/Subcaves | Learned location of Zion (-7) 2187 | -10/Subcaves | Met a Zionite searching for "candidates" 2191 | -10/Subcaves | A Subdweller sparked back to life 2191 | -10/Subcaves | A Subdweller sparked back to life 2241 | -10/Subcaves | Found Prototype Protection 2274 | -10/Subcaves | Entered Materials 2274 | -8/Materials | Evolved 4 slots: Utility x3, Weapon x1 2382 | -8/Materials | X0-1V1 added 0b10 threat records associated with you (minor) 2401 | -8/Materials | Heat dissipation permanently improved by X0-1V1 (+20; -100 max core) 2425 | -8/Materials | Central database locked down 2427 | -8/Materials | X0-1V1 foreshadows a heat wave 2471 | -8/Materials | Discovered new exit (range 8) 2471 | -8/Materials | X0-1V1 whisked you away to safety 2522 | -8/Materials | Garrison activated, responded to threat 2576 | -8/Materials | Identified exit to Garrison 2576 | -8/Materials | Entered Garrison 2622 | -8/Garrison | Triggered checkpoint 2764 | -8/Garrison | Triggered checkpoint 2790 | -8/Garrison | Build established: Gunner 2792 | -8/Garrison | Installed Relay Interface Framework 2813 | -8/Garrison | Discovered new exit (range 57) 2813 | -8/Garrison | Discovered new exit (range 23) 2813 | -8/Garrison | Discovered new exit (range 50) 2878 | -8/Garrison | X0-1V1 activates XOMVISION 2914 | -8/Garrison | Phase Generator disabled 3056 | -8/Garrison | Core integrity permanently improved by X0-1V1 (+200) 3058 | -8/Garrison | Garrison Relay disabled 3182 | -8/Garrison | Entered Materials 3229 | -8/Materials | Identified exit to Garrison 3299 | -8/Materials | X0-1V1 vaporized surrounding terrain (radius 23) 3307 | -8/Materials | Build established: Tank 3351 | -8/Materials | X0-1V1 sent you into danger 3407 | -8/Materials | System corruption reached 10% 3410 | -8/Materials | Destroyed 8 combat bots 3446 | -8/Materials | X0-1V1 added 0b10 threat records associated with you (major) 3550 | -8/Materials | X0-1V1 announced a LAN party 3551 | -8/Materials | Discovered new exit (range 3) 3846 | -8/Materials | Discovered new exit (range 19) 3851 | -8/Materials | X0-1V1 sent you to a vault 3929 | -8/Materials | Entered Garrison 3960 | -8/Garrison | Triggered checkpoint 3984 | -8/Garrison | Weapon slot count temporarily expanded by X0-1V1 (+2) 4051 | -8/Garrison | Phase Generator disabled 4056 | -8/Garrison | Garrison Relay disabled 4184 | -8/Garrison | Triggered checkpoint 4207 | -8/Garrison | Triggered checkpoint 4312 | -8/Garrison | Triggered checkpoint 4328 | -8/Garrison | Build established: Bothacker-Gunner 4420 | -8/Garrison | Triggered checkpoint 4463 | -8/Garrison | Discovered new exit (range 3) 4488 | -8/Garrison | Core integrity fell below 50% 4583 | -8/Garrison | Triggered checkpoint 4624 | -8/Garrison | Discovered new exit (range 11) 4677 | -8/Garrison | Rescued a captive Derelict 4677 | -8/Garrison | Rescued a captive Derelict 4781 | -8/Garrison | Triggered checkpoint 4811 | -8/Garrison | Triggered checkpoint 4889 | -8/Garrison | Discovered new exit (range 15) 4915 | -8/Garrison | Expanded RIF knowledge: Command Fork 4955 | -8/Garrison | Discovered new exit (range 13) 4955 | -8/Garrison | Discovered new exit (range 77) 4955 | -8/Garrison | Discovered new exit (range 40) 4955 | -8/Garrison | Discovered new exit (range 41) 5001 | -8/Garrison | Garrison Relay disabled 5193 | -8/Garrison | Entered Materials 5193 | -8/Materials | Accompanied by 2 allies 5419 | -8/Materials | Discovered new exit (range 6) 5645 | -8/Materials | Repaired Hrd. Heavy Armor Plating 5655 | -8/Materials | X0-1V1 sent hostile S-10 Pest (x3) 5685 | -8/Materials | X0-1V1 sent you to a vault 5697 | -8/Materials | Identified exit to Factory 5697 | -8/Materials | X0-1V1 revealed exit location to -7/Factory 5762 | -8/Materials | X0-1V1 revealed exit location to -7/Factory 5896 | -8/Materials | Discovered exit to Factory (range 5) 6297 | -8/Materials | X0-1V1 activates XOMVISION 6358 | -8/Materials | Identified exit to Garrison 6358 | -8/Materials | Entered Garrison 6358 | -8/Garrison | Accompanied by 2 allies 6467 | -8/Garrison | Rescued a captive Derelict 6548 | -8/Garrison | Triggered checkpoint 6582 | -8/Garrison | Triggered checkpoint 6617 | -8/Garrison | Build established: Bothacker-Tank 6670 | -8/Garrison | Discovered exit to Factory (range 51) 6670 | -8/Garrison | Discovered exit to Factory (range 54) 6670 | -8/Garrison | Discovered exit to Factory (range 50) 6745 | -8/Garrison | X0-1V1 sent allied H-71 Marshal (x1) 6746 | -8/Garrison | Triggered checkpoint 6872 | -8/Garrison | Expanded RIF knowledge: Structural Interface 6897 | -8/Garrison | Triggered checkpoint 6904 | -8/Garrison | Garrison Relay disabled 6964 | -8/Garrison | Expanded RIF knowledge: Autoassimilate 7124 | -8/Garrison | Garrison Relay disabled 7144 | -8/Garrison | Triggered checkpoint 7238 | -8/Garrison | Entered Factory 7238 | -7/Factory | Accompanied by 2 allies 7238 | -7/Factory | Evolved 2 slots: Propulsion x1, Utility x1 7415 | -7/Factory | Repaired Hrd. Heavy Armor Plating 7440 | -7/Factory | X0-1V1 activates XOMVISION 7795 | -7/Factory | X0-1V1 activates XOMVISION 7824 | -7/Factory | X0-1V1 sent hostile H-55 Commando (x2) 7841 | -7/Factory | Garrison activated, responded to threat 7993 | -7/Factory | X0-1V1 downgraded hostiles (x4) 8064 | -7/Factory | Lost 3 allies 8268 | -7/Factory | Cargo convoy interrupted 8439 | -7/Factory | Found Prototype Launcher 8439 | -7/Factory | Identified Com. Tesla Bomb Launcher 8578 | -7/Factory | Build established: Bothacker-Gunner 8586 | -7/Factory | Sucked down chute 8586 | -7/Factory | Entered Waste 8587 | -7/Waste | Met a frightened Derelict 8603 | -7/Waste | Spotted C-40 Crusher 8626 | -7/Waste | 1 allies followed down the chute 8635 | -7/Waste | Allies destroyed C-40 Crusher 8642 | -7/Waste | Spotted C-40 Crusher 8651 | -7/Waste | Destroyed C-40 Crusher 8659 | -7/Waste | Destroyed C-40 Crusher 8667 | -7/Waste | Spotted C-40 Crusher 8667 | -7/Waste | Spotted C-40 Crusher 8711 | -7/Waste | Rewired C-40 Crusher 8721 | -7/Waste | Spotted C-40 Crusher 8730 | -7/Waste | Destroyed C-40 Crusher 8866 | -7/Waste | X0-1V1 reactivated EMP system 8877 | -7/Waste | EMP discharged 8881 | -7/Waste | Discovered new exit (range 10) 8893 | -7/Waste | Entered Factory 8975 | -7/Factory | X0-1V1 redirected Transport squads to designated parking area 8997 | -7/Factory | X0-1V1 sent you to a vault 9150 | -7/Factory | X0-1V1 downgraded hostiles (x2) 9197 | -7/Factory | System corruption reached 10% 9270 | -7/Factory | Build established: Bothacker-Tank 9352 | -7/Factory | Identified exit to Factory 9352 | -7/Factory | X0-1V1 revealed exit location to -6/Factory 9447 | -7/Factory | X0-1V1 vaporized surrounding terrain (radius 20) 9747 | -7/Factory | X0-1V1 sent hostile S-27 Virus (x4) 9788 | -7/Factory | Build established: Bothacker-Gunner 10276 | -7/Factory | Build established: Hauler-Gunner 10321 | -7/Factory | Garrison activated, responded to threat 10635 | -7/Factory | X0-1V1 sent hostile G-47 Trooper (x5) 10740 | -7/Factory | Repaired Hrd. Heavy Armor Plating? 10742 | -7/Factory | X0-1V1 revealed exit location to -6/Factory 10820 | -7/Factory | Repaired Hrd. Heavy Armor Plating 10863 | -7/Factory | Expanded RIF knowledge: Patrol Navigation 10873 | -7/Factory | Repaired Imp. Hardlight Generator? 10946 | -7/Factory | Identified exit to Garrison 10946 | -7/Factory | Entered Garrison 11102 | -7/Garrison | X0-1V1 activates XOMVISION 11105 | -7/Garrison | Expanded RIF knowledge: Hotswap 11144 | -7/Garrison | Garrison Relay disabled 11184 | -7/Garrison | Found Unknown Device 11184 | -7/Garrison | Identified Launcher Loader 11245 | -7/Garrison | Triggered checkpoint 11249 | -7/Garrison | Triggered checkpoint 11314 | -7/Garrison | Destroyed 11 combat bots 11386 | -7/Garrison | Garrison Relay disabled 11426 | -7/Garrison | Triggered checkpoint 11476 | -7/Garrison | Discovered exit to Factory (range 15) 11604 | -7/Garrison | Triggered checkpoint 11684 | -7/Garrison | Build established: Botlord-Gunner 11690 | -7/Garrison | Triggered checkpoint 11708 | -7/Garrison | Lost 3 allies 11727 | -7/Garrison | Discovered exit to Factory (range 31) 11727 | -7/Garrison | Discovered exit to Factory (range 63) 11727 | -7/Garrison | Discovered exit to Factory (range 30) 11764 | -7/Garrison | Garrison Relay disabled 11827 | -7/Garrison | Entered Factory 11827 | -6/Factory | Accompanied by 1 ally 11827 | -6/Factory | Evolved 2 slots: Utility x2 11903 | -6/Factory | Found Prototype Processor 11903 | -6/Factory | Identified Exp. Targeting Computer 11911 | -6/Factory | Found Faulty Exp. Targeting Computer 11964 | -6/Factory | X0-1V1 activates XOMVISION 11969 | -6/Factory | Discovered new exit (range 8) 12096 | -6/Factory | Build established: Botlord-Tank 12177 | -6/Factory | First assault squad dispatched 12229 | -6/Factory | Found Unknown Protection 12229 | -6/Factory | Identified Hvy. Reflective Plating 12291 | -6/Factory | Identified exit to Factory 12291 | -6/Factory | X0-1V1 revealed exit location to -5/Factory 12385 | -6/Factory | X0-1V1 revealed exit location to -5/Factory 12400 | -6/Factory | X0-1V1 announced a LAN party 12607 | -6/Factory | X0-1V1 redirected Transport squads to designated parking area 12727 | -6/Factory | X0-1V1 downgraded hostiles (x3) 12775 | -6/Factory | X0-1V1 mutated your Utility slot to Weapon slot 12789 | -6/Factory | Sucked down chute 12789 | -6/Factory | Entered Waste 12794 | -6/Waste | 2 allies followed down the chute 12843 | -6/Waste | Identified exit to Factory 12843 | -6/Waste | X0-1V1 revealed exit location to -6/Factory 12847 | -6/Waste | Spotted C-40 Crusher 12847 | -6/Waste | Spotted C-40 Crusher 12854 | -6/Waste | Spotted C-40 Crusher 12865 | -6/Waste | Spotted C-40 Crusher 12872 | -6/Waste | Destroyed C-40 Crusher 12875 | -6/Waste | Spotted C-40 Crusher 12945 | -6/Waste | Spotted C-40 Crusher 12984 | -6/Waste | Destroyed C-40 Crusher 13042 | -6/Waste | Destroyed C-40 Crusher 13050 | -6/Waste | Destroyed C-40 Crusher 13119 | -6/Waste | Destroyed C-40 Crusher 13228 | -6/Waste | Entered Factory 13228 | -6/Factory | Accompanied by 1 ally 13241 | -6/Factory | Build established: Bothacker-Tank 13606 | -6/Factory | Spotted B-75 Beast 13703 | -6/Factory | Repaired Hvy. Reflective Plating 13706 | -6/Factory | X0-1V1 activates XOMVISION 14157 | -6/Factory | Build established: Hauler-Tank 14270 | -6/Factory | Discovered exit to Factory (range 9) 14437 | -6/Factory | Repaired Hvy. Mass Driver 14504 | -6/Factory | Watched by a mysterious "MATRIX" hacker 14590 | -6/Factory | Discovered new exit (range 16) 14809 | -6/Factory | P-60 Hacker assimilated allied Administrator 5b 14818 | -6/Factory | Build established: Hauler-Mutant 15142 | -6/Factory | Build established: Bothacker-Tank 15189 | -6/Factory | Destroyed 8 combat bots 15215 | -6/Factory | Fabricated Exp. Targeting Computer (x1) 15680 | -6/Factory | Cargo convoy interrupted 15743 | -6/Factory | X0-1V1 whisked you away to safety 15794 | -6/Factory | Identified exit to Lower Caves 15794 | -6/Factory | X0-1V1 revealed exit location to -6/Lower Caves 15848 | -6/Factory | Destroyed B-75 Beast 16017 | -6/Factory | X0-1V1 revealed exit location to -5/Factory 16088 | -6/Factory | X0-1V1 added 0b10 threat records associated with you (major) 16218 | -6/Factory | X0-1V1 announced a LAN party 16249 | -6/Factory | X0-1V1 activates XOMVISION 16304 | -6/Factory | Lost 3 allies 16338 | -6/Factory | Build established: Hauler-Gunner 16378 | -6/Factory | First assault squad dispatched 16802 | -6/Factory | Lost 3 allies 16807 | -6/Factory | X0-1V1 enhanced Transport squad support 16838 | -6/Factory | Discovered exit to Factory (range 4) 16847 | -6/Factory | Crushed by falling debris 16847 | -6/Factory | System corruption reached 10% 16878 | -6/Factory | Lost 3 parts (1u2w) 16882 | -6/Factory | Garrison activated, responded to threat 16901 | -6/Factory | System corruption reached 30% 16934 | -6/Factory | Destroyed 7 combat bots 16968 | -6/Factory | Identified exit to Garrison 16968 | -6/Factory | Entered Garrison 16968 | -6/Garrison | Accompanied by 1 ally 16977 | -6/Garrison | X0-1V1 sent you into danger 17011 | -6/Garrison | X0-1V1 downgraded hostiles (x1) 17038 | -6/Garrison | Triggered checkpoint 17056 | -6/Garrison | Triggered checkpoint 17094 | -6/Garrison | Garrison Relay disabled 17128 | -6/Garrison | Garrison Relay disabled 17284 | -6/Garrison | Triggered checkpoint 17308 | -6/Garrison | Triggered checkpoint 17309 | -6/Garrison | Triggered checkpoint 17314 | -6/Garrison | Triggered checkpoint 17316 | -6/Garrison | X0-1V1 activates XOMVISION 17366 | -6/Garrison | Triggered checkpoint 17392 | -6/Garrison | Build established: Botlord-Tank 17491 | -6/Garrison | Triggered checkpoint 17531 | -6/Garrison | Core integrity restored by X0-1V1 (+144) 17582 | -6/Garrison | Found Relay Coupler [Proto] 17584 | -6/Garrison | Found Relay Coupler [Proto] 17587 | -6/Garrison | Found Relay Coupler [Proto] 17590 | -6/Garrison | Found Relay Coupler [Proto] 17676 | -6/Garrison | Discovered exit to Factory (range 8) 17698 | -6/Garrison | Rewired Executioner 17706 | -6/Garrison | Rewired Executioner 17841 | -6/Garrison | Discovered exit to Factory (range 10) 17858 | -6/Garrison | Triggered checkpoint 17884 | -6/Garrison | Expanded RIF knowledge: Command Fork 17899 | -6/Garrison | Garrison Relay disabled 17996 | -6/Garrison | X0-1V1 revealed exit location to -5/Factory 18052 | -6/Garrison | Entered Factory 18052 | -5/Factory | Accompanied by 10 allies 18052 | -5/Factory | Evolved 2 slots: Propulsion x1, Utility x1 18433 | -5/Factory | P-70 Sage assimilated allied Machinist 6a 18473 | -5/Factory | Garrison activated, responded to threat 18743 | -5/Factory | Discovered new exit (range 7) 18798 | -5/Factory | X0-1V1 downgraded hostiles (x2) 18915 | -5/Factory | Discovered new exit (range 19) 18944 | -5/Factory | Identified exit to Factory 18944 | -5/Factory | X0-1V1 revealed exit location to -4/Factory 18962 | -5/Factory | Discovered exit to Factory (range 4) 18970 | -5/Factory | Local machine network offline 19062 | -5/Factory | Discovered new exit (range 18) 19173 | -5/Factory | Identified exit to Extension 19173 | -5/Factory | X0-1V1 revealed exit location to -5/Extension 19239 | -5/Factory | X0-1V1 announced a LAN party 19332 | -5/Factory | Identified exit to Garrison 19348 | -5/Factory | Sucked down chute 19348 | -5/Factory | Entered Waste 19349 | -5/Waste | Met a frightened Derelict 19378 | -5/Waste | Spotted C-40 Crusher 19393 | -5/Waste | Destroyed C-40 Crusher 19403 | -5/Waste | Spotted C-40 Crusher 19411 | -5/Waste | Spotted C-40 Crusher 19413 | -5/Waste | Spotted C-40 Crusher 19416 | -5/Waste | Allies destroyed C-40 Crusher 19417 | -5/Waste | Spotted C-40 Crusher 19434 | -5/Waste | Spotted C-40 Crusher 19484 | -5/Waste | Allies destroyed C-40 Crusher 19488 | -5/Waste | Discovered new exit (range 22) 19493 | -5/Waste | Build established: Botlord-Skirmisher 19513 | -5/Waste | Destroyed C-40 Crusher 19557 | -5/Waste | Warlord forces began an assault 19618 | -5/Waste | 13 allies followed down the chute 19742 | -5/Waste | Entered Factory 19742 | -5/Factory | Accompanied by 27 allies 19796 | -5/Factory | X0-1V1 released a cloud of subatomizers 19876 | -5/Factory | Lost 5 allies 19979 | -5/Factory | Identified exit to Upper Caves 19979 | -5/Factory | X0-1V1 revealed exit location to -5/Upper Caves 20182 | -5/Factory | Fabricated Hvy. Reactive Plating (x1) 20307 | -5/Factory | Lost 3 allies 20342 | -5/Factory | First assault squad dispatched 20355 | -5/Factory | X0-1V1 rewrote 70-0BZ(g) IFF filter 20359 | -5/Factory | Lost 3 allies 20418 | -5/Factory | Fabricated Exp. Targeting Computer (x1) 20437 | -5/Factory | Local machine network offline 20484 | -5/Factory | Build established: Botlord-Tank 20488 | -5/Factory | Lost 12 allies 20525 | -5/Factory | X0-1V1 sent you to a vault 20743 | -5/Factory | Discovered exit to Upper Caves (range 4) 20763 | -5/Factory | Garrison activated, responded to threat 20766 | -5/Factory | High security lockdown imminent 20792 | -5/Factory | Identified exit to Garrison 20792 | -5/Factory | Entered Garrison 20792 | -5/Garrison | Accompanied by 1 ally 20810 | -5/Garrison | Lost 3 allies 20812 | -5/Garrison | Assembled breached garrison interior 20923 | -5/Garrison | Lost 3 allies 21001 | -5/Garrison | Garrison Relay disabled 21146 | -5/Garrison | X0-1V1 sent allied Knight (x1) 21173 | -5/Garrison | X0-1V1 activates XOMVISION 21222 | -5/Garrison | Discovered exit to Factory (range 14) 21257 | -5/Garrison | Destroyed 58 combat bots 21293 | -5/Garrison | Crushed by falling debris 21389 | -5/Garrison | Discovered exit to Factory (range 13) 21393 | -5/Garrison | Self-destructed Last Messages --------------- 21314_ Acquired 8 matter. 21315_ Soldier 6j reactivates. 21316_ Acquired 54 matter. 21317_ Acquired 14 matter. 21318_ Acquired 6 matter. 21319_ The unstable cave ceiling collapses. 21321_ Acquired 20 matter. 21323_ The unstable cave ceiling collapses. 21324_ Acquired 19 matter. 21325_ Acquired 15 matter. 21333_ System corrupted: Matter fused (-5). 21339_ Acquired 7 matter. 21340_ Acquired 10 matter. 21341_ Acquired 78 matter. 21347_ Acquired 36 matter. 21370_ Sensor data returns to normal. 21379_ System corrupted: Heat flow error (+102). 21389_ EXIT=FOUND: FACTORY X0-1V1's Piety Tracker suddenly appears amidst shimmering waves of color. Map ----- +----------------------------------------------------+ | | | | | ?????????????????????????????????????????????????? | | ?????????????????????????????????????????????????? | | ?????????????????????????????????????????????????? | | ?????????????????????????????????????????????????? | | ?????????????????????????????????????????????????? | | ?????????????????????????????????????????????????? | | ?????????????????????????????????????????????????? | | ?????????????????????????????????????????????????? | | ?????????????????????????????????????????????????? | | ?????????????????????????????????????????????????? | | ?????????????????????????????????????????????????? | | ?????????????????????????????????????????????????? | | ????????????????????#####?####???????????????????? | | ????????????????????# ?""""???????????????????? | | ????????????????????? " "???????????????????? | | ????????????????????? "???????????????????? | | ?????????????????????? " ????????????????????? | | ?????????????????????? """ "????????????????????? | | ??????????????????????? " ?????????????????????? | | ??????????????????????? ?????????????????????? | | ???????????????????????? ??????????????????????? | | ?????????????+?????????? ??????????????????????? | | ????????????????????????# #??????????????????????? | | ???????????# < ##########@##?????????????????????? | | ???????????# x #?????????????????????? | | ???????????# #?????????????????????? | | ?????????????############ #?????????????????????? | | ????????????????????????# g#?????????????????????? | | ????????????????????????# #?????????????????????? | | ????????????????????????# ####??????????????????? | | ??????????+?????????????+ + #??????????????????? | | ???????????????????+????# ## #?????????????###### | | ??????????????????# ##### ##+########??????# | | ??????????????????# ^ #??????# | | ??????????????????# ##### #????### | | ????????????????????????#! ##+##### #???## ## | | ????????????????????????# #??????# #???# # | | ????????+???????????????# ## ##### #????# # | | ???????????????????+????# ## + #????### ## | | ????????????????????????# ## ##### #????# # [ | | ?????????????+??????????# #??????# ####### = # | | ????????????????????????# #??????# ## !# | | ????????????????????????# ??????## ## ! ## | | ????????????????????????# ##+#### = | | ????????????????????????+ + | | ????????????????????????# | | ????????????????????????########## # = [## | | ???????????????????????????????### ##% = # %## | +----------------------------------------------------+ Best States ------------- Heat Dissipation 145 Energy Generation 25 Energy Capacity 2000 Matter Stores 846 Matter Capacity 1000 Sight Range 27 Terrain Scan Density 10 Jamming Range 12 Cloak Strength 4 Armor Coverage 1200 Resistance: KI 40 Resistance: TH 25 Evasion (%) 55 Targeting Accuracy 16 Melee Accuracy 8 Recoil Reduction 2 Matter Filtering 30 Offensive Hacking 28 Defensive Hacking 10 Relay Coupler Types 4 Relay Coupler Value 172 Authchip Count 6 Item Schematics ----------------- Huge Storage Unit | -10/Materials | Hacked Exp. Targeting Computer | -6/Factory | Scanalyzed Multitool | -6/Factory | Scanalyzed Hvy. Mass Driver | -6/Factory | Scanalyzed Enh. Fission Core | -6/Factory | Scanalyzed Hvy. Reactive Plating | -5/Factory | Hacked Robot Schematics ------------------ M-28 Smith | -8/Materials | Hacked X-72 Disruptor | -6/Factory | Hacked Fabricated ------------ Exp. Targeting Computer | x1 | -6/Factory Hvy. Reactive Plating | x1 | -5/Factory Exp. Targeting Computer | x1 | -5/Factory Repaired ---------- Hrd. Heavy Armor Plating | 18% | -8/Materials Hrd. Heavy Armor Plating | 50% | -7/Factory Hrd. Heavy Armor Plating | 10% | -7/Factory Hrd. Heavy Armor Plating | 11% | -7/Factory Imp. Hardlight Generator | 22% | -7/Factory Hvy. Reflective Plating | 64% | -6/Factory Hvy. Mass Driver | 48% | -6/Factory Studied --------- Shock Bomb Launcher | -8/Materials | Hacked Ion Cannon | -8/Materials | Hacked Arm. Huge Wheel | -7/Factory | Hacked Remote Datajack | -7/Factory | Hacked Com. Wheel | -7/Factory | Hacked Hvy. Mass Driver | -6/Factory | Hacked Alien Tech Used ----------------- None Achievements -------------- None Challenges ------------ None Game ------ Seed DispersalSubdwellerFalx Manual? 0 Play Time 03:46:01 Cumulative 650.4 hours Start 2026.08.22 @ 23:04:00 End 2026.08.23 @ 18:14:55 Sessions 17 Manual Loads 0 Difficulty Rogue Special Mode None Game No. 577 Rogue 541 Adventurer 36 Explorer 0 Win Type - Total 8 Types 2/2/0/1/1/0/0/2/0/0 Lore% 85 Gallery% 74 Achievement% 68 Wizard Run 0 Options --------- Layout 2 ASCII 0 Keyboard 0 Movement Numpad Keybinds 0 Fullscreen 1 Font 48/Smallcaps Map View 50x44 Zoom Use 0% Tactical HUD 1 Map Filters NONE Filters NONE Steam 1 RUN: bdefe096-877e-4578-91c4-c5a519acd595